bitfinex-derivatives/quotes_SOLF0:USTF0_20250428
["timestamp","ask_amount","ask_price","bid_price","bid_amount"]
[1745800722947,4.65524456,147.85,147.82,6.7624]
[1745800723755,4.65524456,147.84,147.82,6.7624]
[1745800725357,4.65524456,147.83,147.82,6.7624]
[1745800726251,4.65524456,147.83,147.76,39.01594456]
[1745800726553,4.65524456,147.8,147.76,39.01594456]
[1745800726754,30.6,147.85,147.76,39.01594456]
[1745800726755,4.65524456,147.82,147.77,4.65524456]
[1745800726955,4.65524456,147.82,147.78,4.65524456]
[1745800727155,4.65524456,147.82,147.77,4.65524456]
[1745800727351,4.65524456,147.82,147.81,6.7632]
[1745800728154,4.65524456,147.82,147.8,6.7636]
[1745800729654,4.65524456,147.82,147.78,4.65524456]
[1745800729655,4.65524456,147.82,147.81,6.7632]
[1745800729853,4.65524456,147.83,147.81,6.7632]
[1745800730759,4.65524456,147.82,147.81,6.7632]
[1745800730959,4.65524456,147.82,147.8,6.7635]
[1745800731461,4.65524456,147.81,147.76,34.3607]
[1745800731661,4.65524456,147.81,147.76,39.01594456]
[1745800731959,4.65524456,147.81,147.77,4.65524456]
[1745800732252,4.65524456,147.83,147.78,4.65524456]
[1745800732450,4.65524456,147.83,147.76,34.3607]
[1745800732451,4.65524456,147.83,147.79,4.65524456]
[1745800733663,4.65524456,147.83,147.81,6.7628]
[1745800734164,4.65524456,147.83,147.82,6.7628]
[1745800734462,4.65524456,147.83,147.79,4.65524456]
[1745800734657,4.65524456,147.83,147.81,6.7629]
[1745800735562,4.65524456,147.86,147.82,4.65524456]
[1745800735759,4.65524456,147.86,147.81,4.65524456]
[1745800736058,4.65524456,147.85,147.81,4.65524456]
[1745800736866,4.65524456,147.85,147.83,6.762]
[1745800739367,4.65524456,147.85,147.84,6.7619]
[1745800739561,4.65524456,147.86,147.84,6.7619]
[1745800740058,4.65524456,147.85,147.83,6.7621]
[1745800740261,4.65524456,147.84,147.78,4.65524456]
[1745800740457,4.65524456,147.81,147.78,6.7642]
[1745800740663,4.65524456,147.81,147.76,39.01594456]
[1745800741165,4.65524456,147.81,147.8,6.7637]
[1745800741464,4.65524456,147.81,147.76,39.01594456]
[1745800741666,4.65524456,147.81,147.79,6.7638]
[1745800741961,4.65524456,147.81,147.76,39.01594456]
[1745800742166,4.65524456,147.81,147.8,6.7637]
[1745800742366,35.25524456,147.84,147.8,4.65524456]
[1745800742666,4.65524456,147.86,147.82,4.65524456]
[1745800742858,4.65524456,147.87,147.84,6.7618]
[1745800743066,30.6,147.88,147.84,4.65524456]
[1745800743365,4.65524456,147.89,147.84,4.65524456]
[1745800743568,4.65524456,147.87,147.83,4.65524456]
[1745800743869,4.65524456,147.87,147.84,6.7615]
[1745800745167,4.65524456,147.86,147.84,6.7615]
[1745800745766,4.65524456,147.87,147.85,6.7614]
[1745800746369,6.7597,147.89,147.85,6.7614]
[1745800746768,4.65524456,147.87,147.85,6.7614]
[1745800748465,6.7597,147.89,147.85,6.7614]
[1745800748664,521.81524456,147.93,147.87,4.65524456]
[1745800748969,35.17524456,147.96,147.91,4.65524456]
[1745800749264,30.52,147.96,147.94,6.7571]
[1745800749467,30.52,147.96,147.91,4.65524456]
[1745800749662,30.52,147.96,147.93,4.65524456]
[1745800749865,30.52,147.99,147.93,4.65524456]
[1745800750063,4.65524456,147.98,147.93,4.65524456]
[1745800750371,4.65524456,147.98,147.95,6.7566]
[1745800750866,4.65524456,147.98,147.94,6.7572]
[1745800751066,4.65524456,147.96,147.91,4.65524456]
[1745800751368,4.65524456,147.93,147.89,8.37864456]
[1745800751569,6.7576,147.94,147.9,6.759]
[1745800751869,37.79730076,147.95,147.86,7.27730076]
[1745800753371,44.55440076,147.95,147.9,6.7588]
[1745800753572,37.79730076,147.95,147.86,7.27730076]
[1745800753972,6.7582,147.93,147.86,7.27730076]
[1745800754469,6.7574,147.94,147.86,7.27730076]
[1745800754974,6.7574,147.94,147.85,34.2434]
[1745800754975,7.27730076,147.93,147.88,6.7599]
[1745800755177,6.7583,147.92,147.88,6.7599]
[1745800755374,7.27730076,147.93,147.85,34.2434]
[1745800755578,14.03510076,147.93,147.89,6.7593]
[1745800756176,14.03510076,147.93,147.88,6.7599]
[1745800757176,7.27730076,147.91,147.85,3.7234]
[1745800757374,37.79730076,147.91,147.85,3.7234]
[1745800757576,6.7592,147.9,147.86,6.7606]
[1745800760477,44.55610076,147.91,147.87,6.7605]
[1745800760668,37.79730076,147.91,147.85,3.7234]
[1745800760872,30.52,147.91,147.85,3.7234]
[1745800761781,7.27730076,147.93,147.85,34.2434]
[1745800762277,37.79730076,147.95,147.86,7.27730076]
[1745800763180,44.55440076,147.95,147.92,6.7581]
[1745800763475,44.55440076,147.95,147.86,7.27730076]
[1745800763674,6.7573,147.94,147.9,6.7588]
[1745800764384,37.79730076,147.95,147.86,7.27730076]
[1745800764878,44.55420076,147.95,147.91,6.7583]
[1745800766583,44.55420076,147.95,147.86,7.27730076]
[1745800767483,44.55420076,147.95,147.91,6.7584]
[1745800769884,44.55420076,147.95,147.92,6.7582]
[1745800770085,37.79730076,147.95,147.86,7.27730076]
[1745800770582,14.03360076,147.97,147.88,7.27730076]
[1745800770778,30.5,147.98,147.9,7.27730076]
[1745800770981,30.5,147.98,147.95,6.7567]
[1745800771885,30.5,147.98,147.91,3.2035]
[1745800772087,7.27730076,148.03,147.94,7.27730076]
[1745800772288,36.3855,148.04,147.94,37.77730076]
[1745800772689,30.5,148.04,147.96,7.27730076]
[1745800773093,30.5,148.04,148.02,6.7536]
[1745800773390,104.05293517,148.07,147.98,7.27730076]
[1745800773590,6.7518,148.06,148.02,6.7534]
[1745800774791,6.7518,148.06,148.01,6.7539]
[1745800775996,6.7523,148.05,148.01,6.7539]
[1745800777095,37.77730076,148.07,147.99,3.1597]
[1745800777295,7.27730076,148.03,147.98,30.5]
[1745800777491,7.27730076,148.03,147.95,30.42]
[1745800777690,6.7539,148.02,147.97,6.7556]
[1745800777891,6.7539,148.02,147.95,30.42]
[1745800778092,7.27730076,148.03,147.95,30.42]
[1745800778296,7.27730076,148.03,147.99,6.755]
[1745800779296,14.03080076,148.03,147.98,6.7553]
[1745800779500,7.27730076,148.03,147.98,6.7553]
[1745800779701,7.27730076,148.03,147.95,30.42]
[1745800780201,7.27730076,148.01,147.95,30.42]
[1745800780397,7.27730076,148.01,147.92,3.1052]
[1745800780701,7.27730076,148.01,147.92,33.5052]
[1745800781101,7.27730076,148.01,147.93,7.27730076]
[1745800782097,14.03170076,148.01,147.97,6.7556]
[1745800782599,1.17609287,148.11,147.98,30.4]
[1745800782806,7.27730076,148.13,148.04,7.27730076]
[1745800783010,7.27730076,148.09,148.02,30.4]
[1745800783307,7.27730076,148.07,147.99,36.4003]
[1745800783906,14.02870076,148.07,148.01,6.754]
[1745800785306,6.7514,148.07,148.01,6.754]
[1745800787608,6.7514,148.07,148.02,6.7536]
[1745800788209,6.7519,148.06,148.01,6.754]
[1745800788809,6.7523,148.05,148.0,6.7544]
[1745800790512,7.27730076,148.04,147.97,486.48]
[1745800790711,7.27730076,148.04,147.96,30.4]
[1745800790912,7.27730076,148.02,147.96,30.4]
[1745800791205,6.7543,148.01,147.97,6.7558]
[1745800791404,6.7543,148.01,147.96,30.4]
[1745800792210,6.7546,148.0,147.96,30.4]
[1745800792412,6.7546,148.0,147.95,3.1242]
[1745800792606,7.27730076,148.0,147.95,3.1242]
[1745800793011,6.7554,147.99,147.95,3.1242]
[1745800793212,7.27730076,148.0,147.94,6.7571]
[1745800793412,7.27730076,148.0,147.93,30.4]
[1745800793723,6.7553,147.99,147.95,6.7567]
[1745800794008,7.27730076,147.98,147.92,3.0028]
[1745800794214,14.03220076,148.0,147.95,6.7565]
[1745800794813,6.7551,147.99,147.95,6.7565]
[1745800795110,7.27730076,148.0,147.92,3.0028]
[1745800795414,6.7556,147.98,147.92,3.0028]
[1745800795615,6.7556,147.98,147.94,6.757]
[1745800798415,11.6938,147.99,147.95,6.7568]
[1745800799010,14.03190076,148.0,147.96,6.756]
[1745800799311,7.27730076,148.02,147.94,7.27730076]
[1745800799511,7.27730076,148.02,147.94,37.67730076]
[1745800799712,14.03130076,148.02,147.97,6.7555]
[1745800800617,37.67730076,148.04,147.94,37.67730076]
[1745800800815,30.4,148.04,147.96,7.27730076]
[1745800801114,7.27730076,148.06,147.98,7.27730076]
[1745800801315,6.7523,148.05,148.01,6.7537]
[1745800802218,6.7523,148.05,148.0,6.7544]
[1745800803018,6.7523,148.05,148.01,6.7539]
[1745800805821,6.7528,148.04,148.0,6.7545]
[1745800806821,6.7524,148.05,148.01,6.754]
[1745800808021,7.27730076,148.06,147.99,6.7547]
[1745800808212,7.27730076,148.04,147.97,2.5951]
[1745800808919,7.27730076,148.02,147.97,2.5951]
[1745800809121,7.27730076,148.0,147.95,37.0767]
[1745800809621,7.27730076,148.0,147.95,6.7567]
[1745800810218,6.7552,147.99,147.95,6.7567]
[1745800811927,7.27730076,148.0,147.92,40.11140076]
[1745800812117,7.27730076,148.02,147.94,7.27730076]
[1745800812320,30.32,148.03,147.96,7.27730076]
[1745800812720,14.03010076,148.04,148.0,6.7541]
[1745800813526,6.7524,148.05,148.01,6.754]
[1745800813716,40.17870076,148.06,147.98,7.27730076]
[1745800813922,40.17870076,148.06,147.99,2.4255]
[1745800814124,30.32,148.06,147.99,2.4255]
[1745800814723,30.32,148.06,148.03,6.7529]
[1745800814922,6.7515,148.07,148.03,6.7529]
[1745800815227,7.27730076,148.06,147.99,2.4255]
[1745800815627,6.7524,148.05,148.01,6.7538]
[1745800815827,7.27730076,148.06,147.99,2.4255]
[1745800816122,493.61730076,148.08,147.99,2.4255]
[1745800816327,493.61730076,148.08,148.03,6.7529]
[1745800817229,6.7519,148.06,148.03,6.7529]
[1745800818429,6.7519,148.06,148.02,6.7535]
[1745800818630,6.7517,148.07,147.99,2.4255]
[1745800819628,6.7517,148.07,148.03,6.753]
[1745800819830,500.36840076,148.08,148.0,7.27730076]
[1745800820029,493.61730076,148.08,148.0,37.59730076]
[1745800820230,493.61730076,148.08,148.04,6.7527]
[1745800820430,7.27730076,148.08,148.04,6.7527]
[1745800820837,6.7514,148.07,148.03,6.753]
[1745800824329,7.27730076,148.11,148.02,7.27730076]
[1745800824539,30.3,148.13,148.04,7.27730076]
[1745800824730,30.3,148.13,148.05,2.5843]
[1745800825132,7.27730076,148.12,148.05,2.5843]
[1745800825631,6.75,148.1,148.06,6.7517]
[1745800827631,7.27730076,148.1,148.05,2.5843]
[1745800827835,7.27730076,148.08,148.01,30.3]
[1745800828036,7.27730076,148.08,148.01,32.6747]
[1745800828237,6.7523,148.05,148.01,2.3747]
[1745800828536,7.27730076,148.06,148.01,2.3747]
[1745800828736,14.02940076,148.06,148.02,6.7533]
[1745800829034,7.27730076,148.06,148.01,2.3747]
[1745800829336,37.0509,148.09,148.01,2.3747]
[1745800829534,30.3,148.09,148.02,7.27730076]
[1745800829838,2.2333,148.11,148.02,37.57730076]
[1745800830334,6.7505,148.09,148.02,37.57730076]
[1745800830637,6.7501,148.1,148.06,6.7515]
[1745800833043,6.7505,148.09,148.05,6.7521]
[1745800833541,7.27730076,148.1,148.02,37.57730076]
[1745800834544,7.27730076,148.08,148.01,2.3747]
[1745800834835,37.57730076,148.08,148.01,2.3747]
[1745800836542,6.7515,148.07,148.03,6.7529]
[1745800838043,44.32840076,148.08,148.04,6.7527]
[1745800838246,37.57730076,148.08,148.01,2.3747]
[1745800838646,6.7514,148.07,148.03,6.7528]
[1745800838846,37.57730076,148.08,148.01,2.3747]
[1745800839446,37.57730076,148.08,148.05,6.7519]
[1745800839647,7.27730076,148.1,148.01,2.3747]
[1745800839848,32.4533,148.11,148.02,7.27730076]
[1745800840149,6.75,148.1,148.02,7.27730076]
[1745800840647,6.75,148.1,148.06,6.7515]
[1745800841449,6.7505,148.09,148.06,6.7515]
[1745800842650,7.27730076,148.08,148.01,2.3747]
[1745800843748,6.7515,148.07,148.03,6.7531]
[1745800844049,14.55460152,148.05,147.89,361.0]
[1745800844251,7.27730076,147.99,147.94,6.7569]
[1745800844547,7.27730076,147.99,147.92,2.2781]
[1745800845249,14.03230076,147.99,147.94,6.757]
[1745800845752,7.27730076,147.99,147.94,6.7572]
[1745800846348,14.03240076,147.99,147.94,6.7572]
[1745800847647,7.27730076,147.99,147.95,6.7564]
[1745800848248,6.7555,147.98,147.94,6.7571]
[1745800849045,6.7555,147.98,147.93,6.7576]
[1745800849351,6.7561,147.97,147.93,6.7576]
[1745800850045,7.27730076,147.99,147.92,2.2781]
[1745800850357,30.22,148.0,147.92,2.2781]
[1745800850652,6.7551,147.99,147.92,2.2781]
[1745800850851,30.22,148.0,147.92,2.2781]
[1745800851147,30.22,148.0,147.93,7.27730076]
[1745800851350,36.9749,148.0,147.93,7.27730076]
[1745800852251,36.9749,148.0,147.96,6.7561]
[1745800853155,30.22,148.0,147.97,6.7558]
[1745800853449,30.22,148.0,147.93,7.27730076]
[1745800853650,30.22,148.03,148.0,6.7542]
[1745800854354,37.49730076,148.03,147.94,30.22]
[1745800854953,44.25060076,148.03,147.94,30.22]
[1745800855355,37.49730076,148.03,147.94,30.22]
[1745800855958,6.7544,148.01,147.94,30.22]
[1745800856555,6.7538,148.02,147.97,6.7556]
[1745800857055,37.49730076,148.03,147.94,30.22]
[1745800857353,44.25060076,148.03,147.94,30.22]
[1745800857547,30.22,148.03,147.95,7.27730076]
[1745800857749,6.7524,148.05,148.01,6.7541]
[1745800858353,6.7524,148.05,148.0,6.7544]
[1745800858559,6.7524,148.05,147.98,2.2243]
[1745800858759,525.3607,148.06,147.99,7.27730076]
[1745800858958,525.88610076,148.06,148.01,6.754]
[1745800859360,6.7526,148.05,148.01,6.754]
[1745800859660,525.88610076,148.06,148.02,6.7535]
[1745800860360,532.63820076,148.06,148.02,6.7535]
[1745800860560,518.6088,148.06,148.03,6.753]
[1745800860757,32.4088,148.06,147.99,7.27730076]
[1745800861061,39.1609,148.06,147.99,7.27730076]
[1745800861359,39.1609,148.06,148.01,6.754]
[1745800861560,6.7523,148.05,148.01,6.754]
[1745800861750,7.27730076,148.04,147.98,2.2243]
[1745800861951,7.27730076,148.04,147.95,37.49730076]
[1745800862160,6.754,148.02,147.99,6.7549]
[1745800862456,7.27730076,148.04,147.99,6.7549]
[1745800862863,6.7537,148.02,147.99,6.7549]
[1745800863462,6.7533,148.03,147.99,6.7549]
[1745800864161,7.27730076,148.04,147.95,37.49730076]
[1745800864362,32.4088,148.06,147.99,7.27730076]
[1745800864562,37.49730076,148.08,147.99,37.49730076]
[1745800864862,6.7515,148.07,148.03,6.7531]
[1745800866069,6.7519,148.06,148.02,6.7536]
[1745800866261,37.49730076,148.08,148.0,2.2282]
[1745800867270,6.7515,148.07,148.03,6.753]
[1745800868272,30.22,148.08,148.01,7.27730076]
[1745800868570,30.22,148.08,148.03,7.27730076]
[1745800868771,2.2469,148.09,148.05,6.7518]
[1745800869673,2.2469,148.09,148.06,6.7516]
[1745800869872,6.7503,148.1,148.06,6.7516]
[1745800870174,6.7505,148.09,148.06,6.7516]
[1745800870374,6.7505,148.09,148.05,6.7521]
[1745800871875,6.7512,148.08,148.03,7.27730076]
[1745800872172,7.27730076,148.09,148.01,7.27730076]
[1745800872379,7.27730076,148.09,148.0,2.2282]
[1745800872771,7.27730076,148.07,148.0,2.2282]
[1745800872975,37.41730076,148.07,148.0,2.2282]
[1745800873173,6.7524,148.05,148.01,6.7537]
[1745800873377,7.27730076,148.05,147.99,30.22]
[1745800873573,7.27730076,148.05,147.96,34.5567]
[1745800873969,6.7535,148.03,147.99,6.7546]
[1745800874273,6.7535,148.03,147.96,34.5567]
[1745800874779,6.7529,148.04,148.0,6.7545]
[1745800875678,6.7529,148.04,148.01,6.754]
[1745800875979,6.7532,148.03,147.96,34.5567]
[1745800877278,6.7532,148.03,148.0,6.7545]
[1745800877978,7.27730076,148.05,148.01,6.754]
[1745800878276,7.27730076,148.09,148.01,7.27730076]
[1745800878478,6.751,148.08,148.02,2.1755]
[1745800878679,6.751,148.08,148.04,6.7523]
[1745800879581,6.7514,148.07,148.03,6.753]
[1745800880177,6.7518,148.06,148.02,8.929]
[1745800880980,6.7526,148.05,148.02,2.1755]
[1745800881178,7.27730076,148.05,147.97,37.41730076]
[1745800881379,7.27730076,148.05,147.97,39.51890076]
[1745800881780,6.7529,148.04,148.0,6.7543]
[1745800882283,14.02970076,148.05,148.0,6.7543]
[1745800883083,14.02970076,148.05,148.01,6.754]
[1745800884783,14.02970076,148.05,148.02,6.7536]
[1745800886983,14.02970076,148.05,148.01,6.754]
[1745800887385,14.02970076,148.05,147.97,39.51890076]
[1745800887583,7.27730076,148.05,147.97,39.51890076]
[1745800887783,7.27730076,148.05,148.02,6.7536]
[1745800888386,14.02980076,148.05,148.01,6.754]
[1745800888784,7.27730076,148.05,147.97,39.51890076]
[1745800889486,30.14,148.06,147.99,7.27730076]
[1745800889675,2.1093,148.1,148.01,7.27730076]
[1745800889879,39.65050076,148.11,148.03,7.27730076]
[1745800890174,39.65050076,148.11,148.04,2.0542]
[1745800890588,6.7507,148.09,148.06,6.7518]
[1745800890888,39.65050076,148.11,148.01,30.14]
[1745800891087,7.27730076,148.08,148.01,30.14]
[1745800891386,6.7517,148.07,148.03,6.7528]
[1745800891588,7.27730076,148.08,148.01,30.14]
[1745800891791,14.02830076,148.08,148.04,6.7524]
[1745800893888,6.7514,148.07,148.03,6.753]
[1745800895089,6.7514,148.07,148.01,30.14]
[1745800895492,6.7514,148.07,148.03,6.7529]
[1745800895685,37.41730076,148.08,148.01,30.14]
[1745800895886,7.27730076,148.06,147.99,2.0542]
[1745800896081,7.27730076,148.06,148.01,6.7538]
[1745800896287,6.7527,148.04,148.01,6.7538]
[1745800896488,6.7527,148.04,147.99,2.0542]
[1745800896993,6.7527,148.04,148.0,6.7542]
[1745800897792,6.7527,148.04,148.01,6.754]
[1745800898691,6.7527,148.04,148.0,6.7544]
[1745800898996,7.27730076,148.04,147.95,37.33730076]
[1745800899292,7.27730076,148.04,147.95,39.45210076]
[1745800900091,37.33730076,148.04,147.95,39.45210076]
[1745800900291,6.7539,148.02,147.98,6.7552]
[1745800901387,6.7541,148.01,147.98,6.7552]
[1745800901592,7.27730076,148.02,147.97,6.7558]
[1745800901794,7.27730076,148.02,147.95,32.1748]
[1745800901994,6.7549,148.0,147.95,32.1748]
[1745800902290,7.27730076,148.0,147.95,2.1148]
[1745800903293,14.03210076,148.0,147.96,6.756]
[1745800903794,37.33730076,148.0,147.92,30.06]
[1745800903990,6.7558,147.98,147.94,6.7571]
[1745800904292,30.06,148.0,147.92,30.06]
[1745800904495,7.27730076,147.98,147.9,7.27730076]
[1745800904695,6.7562,147.97,147.93,6.7574]
[1745800904895,6.7562,147.97,147.9,7.27730076]
[1745800905693,14.03290076,147.98,147.94,6.7572]
[1745800909800,7.27730076,147.98,147.95,6.7566]
[1745800910301,30.06,148.0,147.97,6.7559]
[1745800910697,30.06,148.0,147.98,6.7552]
[1745800911001,30.06,148.0,147.93,30.06]
[1745800911301,36.8146,148.0,147.97,6.7558]
[1745800911505,4.65341578,147.99,147.97,6.7558]
[1745800913104,30.06,148.0,147.97,4.65341578]
[1745800913400,4.65341578,148.02,147.98,4.65341578]
[1745800913602,4.65341578,148.04,148.02,6.7536]
[1745800915104,4.65341578,148.05,148.01,4.65341578]
[1745800915402,34.71341578,148.06,148.02,4.65341578]
[1745800915602,30.06,148.06,148.03,6.7528]
[1745800916295,30.06,148.09,148.01,7.26419474]
[1745800916494,30.06,148.09,148.02,2.0549]
[1745800917101,30.06,148.09,148.02,6.3102]
[1745800917406,36.8108,148.09,148.05,6.7519]
[1745800917903,30.06,148.09,148.02,6.3102]
[1745800918600,6.7523,148.05,147.98,37.32419474]
[1745800918905,6.7523,148.05,147.98,7.26419474]
[1745800919109,14.01609474,148.06,148.01,6.7537]
[1745800919296,7.26419474,148.06,148.01,6.7537]
[1745800921306,6.7524,148.05,148.01,6.7537]
[1745800921904,6.7528,148.04,148.0,6.7545]
[1745800922208,7.26419474,148.06,147.97,30.06]
[1745800922507,14.01729474,148.04,147.97,30.06]
[1745800923008,14.01729474,148.04,147.99,6.7546]
[1745800923305,14.01729474,148.04,147.97,30.06]
[1745800924206,14.01729474,148.04,148.0,6.7542]
[1745800925299,7.26419474,148.02,147.97,30.06]
[1745800925503,7.26419474,148.0,147.94,361.0]
[1745800925705,6.7555,147.98,147.94,6.7572]
[1745800925904,7.26419474,147.98,147.92,2.1973]
[1745800926108,7.26419474,147.96,147.89,4.0982]
[1745800926304,6.7581,147.93,147.89,6.7595]
[1745800926907,14.02159474,147.94,147.9,6.7591]
[1745800927108,14.02159474,147.94,147.87,30.06]
[1745800927408,7.26419474,147.94,147.87,30.06]
[1745800928311,6.7578,147.93,147.89,6.7594]
[1745800929206,6.7578,147.93,147.88,6.7599]
[1745800929807,6.7578,147.93,147.89,6.7595]
[1745800930209,6.7583,147.92,147.87,30.06]
[1745800931212,6.7589,147.91,147.87,36.8204]
[1745800931414,7.26419474,147.92,147.85,2.1161]
[1745800932414,14.02239474,147.92,147.88,6.76]
[1745800933010,6.7587,147.91,147.87,6.7603]
[1745800933613,7.26419474,147.92,147.89,6.7595]
[1745800933813,7.26419474,147.92,147.85,9.38029474]
[1745800934313,7.26419474,147.92,147.88,6.7598]
[1745800934815,16.26039474,147.96,147.89,7.26419474]
[1745800935114,32.1597,147.97,147.89,7.26419474]
[1745800935416,6.7571,147.95,147.91,6.7585]
[1745800938006,7.26419474,147.96,147.88,37.24419474]
[1745800938212,6.7573,147.94,147.9,6.759]
[1745800938414,7.26419474,147.96,147.88,37.24419474]
[1745800938616,32.1597,147.97,147.88,37.24419474]
[1745800939315,7.26419474,147.96,147.88,37.24419474]
[1745800940818,6.7576,147.94,147.9,6.7591]
[1745800942413,7.26419474,147.96,147.89,6.7594]
[1745800942414,6.7581,147.93,147.89,6.7594]
[1745800943112,6.7574,147.94,147.9,6.7591]
[1745800943516,6.7578,147.93,147.9,6.7591]
[1745800946121,6.7578,147.93,147.89,6.7594]
[1745800947516,6.7583,147.92,147.88,6.7599]
[1745800947713,7.26419474,147.94,147.86,7.26419474]
[1745800949224,6.7587,147.91,147.88,6.76]
[1745800949522,7.26419474,147.92,147.85,32.0961]
[1745800949930,6.7592,147.9,147.85,32.0961]
[1745800950219,7.26419474,147.9,147.85,2.1161]
[1745800950425,7.26419474,147.86,147.82,6.7624]
[1745800950823,7.26419474,147.86,147.79,29.98]
[1745800951426,6.7619,147.84,147.81,6.7631]
[1745800951627,4.66332179,147.83,147.81,6.7631]
[1745800951822,4.66332179,147.83,147.79,34.64332179]
[1745800952224,4.66332179,147.82,147.8,6.7634]
[1745800952724,4.66332179,147.82,147.81,6.7632]
[1745800952920,4.66332179,147.84,147.79,4.66332179]
[1745800953226,29.98,147.88,147.79,4.66332179]
[1745800953227,4.66332179,147.83,147.79,4.66332179]
[1745800953426,4.66332179,147.83,147.78,6.79132179]
[1745800953629,7.28742269,147.83,147.78,2.128]
[1745800954225,14.04992269,147.83,147.79,6.7637]
[1745800954425,14.04992269,147.83,147.78,2.128]
[1745800954626,7.28742269,147.83,147.78,2.128]
[1745800955228,7.28742269,147.83,147.8,6.7636]
[1745800955528,14.04992269,147.83,147.78,2.128]
[1745800955723,14.04992269,147.83,147.79,6.764]
[1745800956029,7.28742269,147.83,147.79,6.764]
[1745800956327,6.7631,147.82,147.78,2.128]
[1745800956727,6.7631,147.82,147.78,8.8926]
[1745800957023,6.7631,147.82,147.78,6.7646]
[1745800958731,7.28742269,147.83,147.76,6.7652]
[1745800958925,11.38582269,147.83,147.76,6.7652]
[1745800959125,7.28742269,147.81,147.74,9.46092269]
[1745800959428,14.05102269,147.81,147.74,9.46092269]
[1745800960334,7.28742269,147.81,147.74,9.46092269]
[1745800960534,7.28742269,147.81,147.78,6.7643]
[1745800960834,6.7629,147.82,147.74,9.46092269]
[1745800961228,6.7633,147.81,147.78,6.7645]
[1745800962137,6.7633,147.81,147.77,6.7649]
[1745800963034,7.28742269,147.81,147.75,6.7657]
[1745800963340,7.28742269,147.81,147.74,2.1735]
[1745800964434,14.05072269,147.81,147.77,6.7647]
[1745800964736,11.38582269,147.83,147.74,9.46092269]
[1745800964934,4.0984,147.83,147.74,9.46092269]
[1745800965138,10.8611,147.83,147.74,9.46092269]
[1745800965741,10.8611,147.83,147.79,6.764]
[1745800966139,6.7629,147.82,147.79,6.764]
[1745800966439,11.38582269,147.83,147.78,6.7645]
[1745800966839,11.38582269,147.83,147.74,9.46092269]
[1745800966840,14.05092269,147.81,147.76,6.7651]
[1745800967436,7.28742269,147.81,147.77,6.765]
[1745800967938,14.05092269,147.81,147.77,6.765]
[1745800968339,7.28742269,147.81,147.77,6.765]
[1745800969241,6.7638,147.8,147.77,6.765]
[1745800969939,6.7638,147.8,147.76,6.7653]
[1745800970638,6.7638,147.8,147.77,6.765]
[1745800971141,6.7638,147.8,147.76,6.7653]
[1745800973043,6.7638,147.8,147.77,6.765]
[1745800973242,6.763,147.82,147.74,9.46092269]
[1745800973542,4.66439475,147.82,147.77,4.66439475]
[1745800973742,6.7634,147.81,147.77,11.42909475]
[1745800973938,11.42779475,147.81,147.77,6.7647]
[1745800974643,6.7637,147.8,147.77,6.7647]
[1745800974941,4.66439475,147.78,147.74,6.83789475]
[1745800975837,4.66439475,147.78,147.75,6.766]
[1745800976042,4.66439475,147.78,147.74,6.83789475]
[1745800976244,4.66439475,147.79,147.75,4.66439475]
[1745800977038,4.66439475,147.79,147.76,6.7652]
[1745800977235,4.66439475,147.79,147.75,4.66439475]
[1745800977443,4.66439475,147.79,147.76,6.7654]
[1745800978145,4.66439475,147.79,147.77,6.765]
[1745800979343,4.0984,147.83,147.78,6.7646]
[1745800979538,4.0984,147.83,147.77,4.66439475]
[1745800979745,4.66439475,147.83,147.79,4.66439475]
[1745800979946,4.66439475,147.85,147.8,4.66439475]
[1745800980744,4.66439475,147.84,147.8,4.66439475]
[1745800980944,4.66439475,147.84,147.79,4.66439475]
[1745800981346,4.66439475,147.84,147.82,6.7625]
[1745800983044,29.92,147.95,147.83,4.66439475]
[1745800983249,4.66439475,147.91,147.85,4.66439475]
[1745800983547,4.66439475,147.91,147.87,6.7601]
[1745800983745,4.66439475,147.92,147.87,4.66439475]
[1745800983947,34.58439475,147.95,147.9,4.66439475]
[1745800984249,41.34129475,147.95,147.91,4.66439475]